Cogmind - Beta 11 @@@ ROGUE MODE // 2022.04.12 @ 15:31:15 Player: Dytto Result: Destroyed by G-34 Mercenary with Small Laser Performance ------------- Evolutions (0) 0 Regions Visited (2) 400 Robots Destroyed (21) 105 Value Destroyed (410) 410 Prototype IDs (0) 0 Alien Tech Used (0) 0 Bonus (0) 0 TOTAL SCORE: 915 Bonus ------- None Cogmind --------- Core Integrity 0/250 Matter 429/450 Energy 125/125 System Corruption 0% Temperature Cool (12) Movement Rolling (100) Location -10/Mines Parts ------- > --- POWER (1) -------- Light Ion Engine > --- PROPULSION (2) --- Compact Wheel Compact Wheel > --- UTILITY (2) ------ Compact Matter Pod Improved Targeting Computer > --- WEAPON (2) ------- Small Laser Assault Rifle > --- INVENTORY (5) ---- Ion Engine Aluminum Leg Heat Sink Propulsion Shielding Peak State ------------ > --- POWER ------------ Light Ion Engine > --- PROPULSION ------- Compact Wheel Compact Wheel > --- UTILITY ---------- Compact Matter Pod Improved Targeting Computer > --- WEAPON ----------- Small Laser Assault Rifle > --- INVENTORY -------- Ion Engine Aluminum Leg Heat Sink Propulsion Shielding [Rating: 10] Favorites ----------- Power Ion Engine Engine Ion Engine Propulsion Compact Wheel Leg Aluminum Leg Wheel Compact Wheel Utility Sensor Array Device Sensor Array Storage Compact Matter Pod Processor Improved Targeting Computer Weapon Small Laser Energy Gun Small Laser Ballistic Gun Assault Rifle Launcher Rocket Launcher Build | -11 -10 -10 ------- Run | Scr Mat Min Slots Evolved . | . . . Power . | . . . Propulsion . | . . . Utility . | . . . Weapon . | . . . Parts Attached 23 | 5 14 4 Power 2 | 1 1 . Engine 2 | 1 1 . Core . | . . . Reactor . | . . . Propulsion 6 | 2 4 . Treads . | . . . Leg 2 | . 2 . Wheel 4 | 2 2 . Hover . | . . . Flight . | . . . Utility 7 | . 6 1 Device 4 | . 4 . Storage 1 | . . 1 Processor 2 | . 2 . Hackware . | . . . Protection . | . . . Artifact . | . . . Weapon 8 | 2 3 3 Energy Gun 4 | 1 2 1 Energy Cannon . | . . . Ballistic Gun 3 | 1 1 1 Ballistic Cannon . | . . . Launcher 1 | . . 1 Special Weapon . | . . . Impact Weapon . | . . . Slashing Weapon . | . . . Piercing Weapon . | . . . Special Melee Weapon . | . . . Unidentified Prototypes . | . . . Parts Lost 2 | . 1 1 Power . | . . . Propulsion . | . . . Utility . | . . . Weapon 2 | . 1 1 Highest Loss Streak 1 | . 1 1 To Critical Strikes . | . . . Average Slot Usage (%) 91 | . 89 95 Engine 14 | . 14 14 Leg 8 | . 12 . Wheel 19 | . 15 28 Device 10 | . 10 10 Processor 9 | . 8 14 Energy Gun 17 | . 17 17 Ballistic Gun 8 | . 9 5 Naked Turns . | . . . Heaviest Build 11 | 8 11 9 Greatest Support 32 | 26 32 32 Greatest Overweight (x) 2 | . 2 . Average Overweight (x) . | . . . Largest Inventory Capacity 5 | 5 5 5 Average Capacity 5 | 5 5 5 Most Carried 5 | 3 5 5 Average Carried 4 | 1 4 4 Final Capacity 5 | 5 5 5 Final Carried 5 | 3 5 4 Class Distribution -------------------- 100% | Mutant Dominant Class ---------------- Mutant | -10/Materials Mutant | -10/Mines Resources | -11 -10 -10 ----------- Run | Scr Mat Min Matter Collected 551 | 214 264 73 Remotely . | . . . Salvage Created 466 | . 342 124 Parts 34 | . 24 10 Haulers Intercepted . | . . . Recyclers Shooed . | . . . Parts Field Recycled . | . . . Retrieved Matter . | . . . Parts Self-Destructed . | . . . Prevented . | . . . Kills | -11 -10 -10 ------- Run | Scr Mat Min Combat Hostiles Destroyed 19 | . 12 7 Guns 17 | . 12 5 AOE 2 | . . 2 Classes Destroyed 4 | . 3 1 Worker 1 | . . 1 Builder 1 | . 1 . Swarmer 12 | . 6 6 Grunt 7 | . 6 1 Best Kill Streak 4 | . 3 4 Combat Bots Only 3 | . 3 3 Max Kills in Single Turn 2 | . 2 2 Gunslinging 1 | . 1 . Exploded 1 | . . 1 Melee . | . . . Uniques/NPCs Destroyed . | . . . Combat | -11 -10 -10 -------- Run | Scr Mat Min Damage Taken 846 | . 542 304 Core 252 | . 159 93 Absorbed by Shields . | . . . Regen/Repaired (Parts) 24 | . 24 . Core Remaining (%) 100 | 100 . . Volleys Fired 58 | . 41 17 Largest 2 | . 2 2 Hottest 85 | . 80 85 Shots Fired 116 | . 82 34 Gun 113 | . 82 31 Cannon . | . . . Launcher 3 | . . 3 Special . | . . . Kinetic 38 | . 31 7 Thermal 48 | . 31 17 Explosive 3 | . . 3 Electromagnetic 27 | . 20 7 Robot Hit Streak 13 | . 13 4 Robot Miss Streak 7 | . 7 5 Penetration Max . | . . . Secondary Targets 4 | . 3 1 Max Gunslinging Chain 1 | . 1 1 Shots Hit Robots 69 | . 51 18 Core Hits 34 | . 22 12 Critical Kills . | . . . Critical Parts Destroyed . | . . . Critical Strikes . | . . . Melee Attacks . | . . . Impact . | . . . Slashing . | . . . Piercing . | . . . Sneak Attacks . | . . . Combat Hostiles . | . . . Follow-up Attacks . | . . . Damage Inflicted 1014 | . 651 363 Guns 788 | . 590 198 Cannons . | . . . Explosions 226 | . 61 165 Melee . | . . . Ramming . | . . . Kinetic 332 | . 272 60 Thermal 357 | . 258 99 Explosive 165 | . . 165 Electromagnetic 160 | . 121 39 Impact . | . . . Slashing . | . . . Piercing . | . . . Highest Corruption . | . . . Average Corruption . | . . . Corruption Purged . | . . . Corruption Blocked . | . . . Overload Shots . | . . . Overflow Damage 1 | . . 1 Projectiles . | . . . Explosions 1 | . . 1 Melee . | . . . Knockbacks . | . . . Impact . | . . . Kinetic . | . . . Secondary . | . . . Self-Inflicted Damage 53 | . . 53 Shots 3 | . . 3 Rammed . | . . . Targets Rammed . | . . . Kicked . | . . . Crushed . | . . . Highest Temperature 148 | . 41 148 Average Temperature 26 | . 13 53 Received Heat Transfer 294 | . 228 66 Siege Activations . | . . . Robots Corrupted . | . . . Combat Hostiles . | . . . Parts Fried . | . . . Impact Corruptions . | . . . Robots Melted . | . . . Combat Hostiles . | . . . Parts Melted . | . . . Heat Transferred 775 | . 550 225 Parts Sabotaged . | . . . Parts Stolen . | . . . Parts Stripped . | . . . Power Chain Reactions 1 | . 1 . Missiles Intercepted . | . . . Alert | -11 -10 -10 ------- Run | Scr Mat Min Peak Influence 291 | . 210 291 Initial 81 | . . 81 Average 111 | . 93 177 Maximum Alert Level 1 | . 1 1 Low Security (%) 86 | 100 96 57 Level 1 13 | . 3 42 Level 2 . | . . . Level 3 . | . . . Level 4 . | . . . Level 5 . | . . . High Security . | . . . Max Security . | . . . Squads Dispatched 1 | . 1 . Investigation . | . . . Extermination . | . . . Reinforcement 1 | . 1 . Assault . | . . . Garrison . | . . . Intercept . | . . . Searches Triggered . | . . . Construction Impeded . | . . . Haulers Reinforced . | . . . Active Scanning Responses . | . . . Cargo Convoy Interrupts . | . . . Stealth | -11 -10 -10 --------- Run | Scr Mat Min Distress Signals 2 | . 2 . Communications Jammed . | . . . Distress Signals . | . . . Times Spotted 33 | . 25 8 Peak Tracking Total 4 | . 4 3 Tactical Retreats 2 | . 2 . Traps | -11 -10 -10 ------- Run | Scr Mat Min Traps Triggered . | . . . Indirectly . | . . . Trap Hack Attempts . | . . . Triggered . | . . . Disarmed . | . . . Reprogrammed . | . . . Reused . | . . . Traps Extracted . | . . . Installed . | . . . Triggered . | . . . Machines | -11 -10 -10 ---------- Run | Scr Mat Min Machines Disabled 2 | . 1 1 Max in Single Turn 1 | . 1 1 Machines Sabotaged . | . . . Garrisons Compromised . | . . . Overloaded Fab Kills . | . . . Hacking | -11 -10 -10 --------- Run | Scr Mat Min Machines Accessed 7 | . 7 . Terminals 5 | . 5 . Fabricators . | . . . Repair Stations 1 | . 1 . Recycling Units 1 | . 1 . Scanalyzers . | . . . Garrison Access . | . . . Total Hacks 13 | . 13 . Successful 6 | . 6 . Failed 7 | . 7 . Catastrophic . | . . . Database Lockouts . | . . . Manual . | . . . Terminals 10 | . 10 . Fabricators . | . . . Repair Stations 2 | . 2 . Recycling Units 1 | . 1 . Scanalyzers . | . . . Garrison Access . | . . . Terminal Hacks 3 | . 3 . Robot Analysis 1 | . 1 . Emergency Access Points 1 | . 1 . Zone Layout 1 | . 1 . Fabricator Hacks . | . . . Repair Station Hacks 2 | . 2 . Scan Component 1 | . 1 . Repair 1 | . 1 . Recycling Unit Hacks 1 | . 1 . Recycle Component 1 | . 1 . Scanalyzer . | . . . Garrison Access Hacks . | . . . Unauthorized Hacks . | . . . Terminals . | . . . Fabricators . | . . . Repair Stations . | . . . Recycling Units . | . . . Scanalyzers . | . . . Garrison Access . | . . . Data Cores Recovered . | . . . Used . | . . . Hacking Detections 6 | . 6 . Full Trace Events 1 | . 1 . Feedback Events . | . . . Feedback Blocked . | . . . Robot Schematics Acquired . | . . . Robots Built . | . . . Authchips . | . . . Time . | . . . Total Robot Build Rating . | . . . Part Schematics Acquired . | . . . Parts Built . | . . . Authchips . | . . . Time . | . . . Total Part Build Rating . | . . . Parts Repaired 1 | . 1 . Time 26 | . 26 . Parts Recycled 1 | . 1 . Recycled Matter . | . . . Retrieved Matter . | . . . Retrieved Components . | . . . Parts Scanalyzed . | . . . Part Schematics Acquired . | . . . Parts Damaged . | . . . Bothacking | -11 -10 -10 ------------ Run | Scr Mat Min Used RIF Installer . | . . . Robots Hacked . | . . . Non-combat . | . . . Combat . | . . . Robot Hacks Applied . | . . . Relay Couplers Released . | . . . Fabnet Peak Effective % . | . . . Robots Rewired . | . . . Allies Hacked . | . . . Hacks Repelled . | . . . Allies | -11 -10 -10 -------- Run | Scr Mat Min Total Allies . | . . . Largest Group . | . . . Highest-Rated Group . | . . . Highest-Rated Ally . | . . . Total Orders . | . . . Ally Attacks . | . . . Total Damage . | . . . Kills . | . . . Allies Corrupted . | . . . Allies Melted . | . . . Intel | -11 -10 -10 ------- Run | Scr Mat Min Robot Analysis Total 1 | . 1 . Derelict Logs Recovered 2 | . . 2 Drone Launches . | . . . Drone Recoveries . | . . . Exploration | -11 -10 -10 ------------- Run | Scr Mat Min Turns Passed 1691 | 58 1196 437 Spaces Moved 1208 | 53 796 359 Core 3 | 2 1 . Treads . | . . . Legs 343 | . 343 . Wheels 862 | 51 452 359 Hover . | . . . Flight . | . . . Fastest Speed 50 | 50 90 100 Average Speed 104 | 87 107 100 Slowest Speed 150 | 90 150 100 Overloaded Moves . | . . . Propulsion Burnouts . | . . . Robots Hopped . | . . . Cave-ins Triggered . | . . . Exploration Rate (%) 57 | 4 91 78 Regions Visited 2 Branch Regions 1 Pre-discovered Areas 1 | . . 1 Known Exits Taken . | . . . Unknown Exits Taken 2 | 1 1 . Scrap Searched 1 | . . 1 Spaces Dug . | . . . Terrain Destroyed 25 | . 4 21 Melee . | . . . Projectile . | . . . AOE 25 | . 4 21 Terrain Rammed . | . . . Walls Destroyed . | . . . Machines Disabled . | . . . Actions | -11 -10 -10 --------- Run | Scr Mat Min Total 1522 | 61 1058 403 Wait 212 | 1 190 21 Move 1206 | 52 795 359 Hop . | . . . Pick Up 9 | 3 6 . Fast Attach 16 | 5 9 2 Attach 5 | . 4 1 Detach 5 | . 5 . Swap 2 | . 1 1 Drop 9 | . 7 2 Fire 58 | . 41 17 Melee . | . . . Ram . | . . . Kick . | . . . Crush . | . . . Escape Stasis . | . . . Rewire . | . . . Trap . | . . . Miscellaneous . | . . . Route ------- -11/Scrapyard -10/Materials (discovered 3 exits: [*Mat x2] / [*Min]) -10/Mines (discovered 2 exits: [*Mat x2]) History --------- Turn | Location | Event 18 | -11/Scrapyard | Discovered new exit (range 16) 59 | -11/Scrapyard | Entered Materials 307 | -10/Materials | Build established: Mutant 440 | -10/Materials | Repaired Com. Wheel 642 | -10/Materials | Discovered new exit (range 16) 886 | -10/Materials | Discovered new exit (range 13) 1203 | -10/Materials | Core integrity fell below 50% 1240 | -10/Materials | Discovered new exit (range 13) 1255 | -10/Materials | Entered Mines 1265 | -10/Mines | Learned 2 Materials zone layouts 1267 | -10/Mines | Assembled infested the area 1270 | -10/Mines | Learned location of Zion (-7) 1272 | -10/Mines | Assisted by a Guerilla fighting off Assembled 1371 | -10/Mines | Discovered new exit (range 8) 1426 | -10/Mines | Received a Rocket Launcher from a helpful Derelict 1551 | -10/Mines | Discovered new exit (range 12) 1662 | -10/Mines | Core integrity fell below 20% 1692 | -10/Mines | Destroyed by G-34 Mercenary with Small Laser Last Messages --------------- 01427_ Dropped EM Shotgun. 01429_ Acquired Rocket Launcher. 01431_ R-06 Scavenger collects EM Shotgun. 01468_ S-10 Pest destroyed. 01468_ Laser Drill disabled. 01468_ K-01 Serf collects debris. 01472_ S-10 Pest destroyed. 01472_ K-01 Serf destroyed. 01476_ S-10 Pest destroyed. 01476_ Rocket Launcher destroyed. 01476_ Destroyed Rocket Launcher. 01482_ The unstable cave ceiling collapses. 01484_ Acquired 1 matter. 01551_ EXIT=FOUND 01575_ Extracted 37 matter. 01579_ Dropped Sensor Array. 01581_ Acquired Com. Matter Pod. 01583_ Extracted 10 matter. 01652_ U-05 Engineer lays Concrete. 01686_ G-47 Trooper destroyed. Map ----- +----------------------------------------------------+ | ????# ### #???????????????????????? | | ????# ### #???????????????????????? | | ????##### #?# #???????????????????????? | | ????????# #?# ?????????# ##???????????? | | ?????#### #?# ???#????# % ???????##? | | ?????# #?# ??? #### #????## | | ?????# ####?## ??? %% ???## | | ???### ##?????#???? %| | | ???# #####?????? % % = # | | ???# #?????? % % %? ??? | | ???# # ##????? % ?????????? | | ??## [ #????? #??????????? | | ??# #????? #???????????? | | ??# #??????# ?????????????? | | ??## #??????# #??????????????? | | ???# " = #?????## #???????????????? | | ???# #?##### #????????????????? | | ???# #?# ##????????????????? | | ???#### #####?#g######?????????????????? | | ??????# #?????#%#??????????????????????? | | ??????# #?????# #??????????????????????? | | ??????# #?????# #??????????????????????? | | ??????# #?????# #??????????????????????? | | ??????# #?????# #??????????????????????? | | ??????# ####### #??????????????????????? | | ??????# @#??????????????????????? | | ??????# #########??????????????????????? | | ??????# #??????????????????????????????? | | ??????# ###############????????????????? | | ??????# #????????????????? | | ????### ############# #????????????????? | | ????# #???????????# #????????????????? | | ????# ###???????????# ##???????????????? | | ????# #????????????## ##??????????????? | | ????# #????????????# #??????????????? | | ????# #????????????# ##?????????????? | | ????# #????????????# ####??????????? | | ????# #????????##### ##?????????? | | ????# #????????# #?????????? | | ????# #????????# ##### #?????????? | | ????# #????????# #???# #?????????? | | ???## #######??# #???# < #?????????? | | ???# #??# #???## ##?????????? | | ???# #### ############??????????? | | ???# """ ## #?????????????????? | | ???# """ ## !!! #?????????????????? | | ???# """ ## ! ! #?????????????????? | | ???# ## ! #?????????????????? | | ???# ## !! #?????????????????? | | ???########### #?????????????????? | +----------------------------------------------------+ Best States ------------- Heat Dissipation 45 Energy Generation 10 Energy Capacity 250 Matter Stores 450 Matter Capacity 450 Sight Range 16 Robot Scan Range 14 Terrain Scan Density 10 Evasion (%) 55 Targeting Accuracy 6 Item Schematics ----------------- None Robot Schematics ------------------ None Fabricated ------------ Nothing Alien Tech Used ----------------- None Achievements -------------- None Challenges ------------ None Game ------ Seed CentriumTachyonLeg Manual? 0 Play Time 00:16:16 Cumulative 19.1 hours Start 2022.04.12 @ 15:14:04 End 2022.04.12 @ 15:31:15 Sessions 1 Manual Loads 0 Difficulty Rogue Special Mode None Game No. 68 Rogue 32 Adventurer 36 Explorer 0 Win Type - Total 0 Types 0/0/0/0/0/0/0/0/0 Lore% 15 Gallery% 21 Achievement% 15 Wizard Run 0 Options --------- ASCII 0 Keyboard 1 Movement Numpad Keybinds 0 Fullscreen 2 Font 18/X11Bold Map View 76x50 Tactical HUD 1 Map Filters NONE Filters NONE Steam 1 RUN: 6358ab5c-64e4-477e-9108-98c809f2a05f